[Event "Dutch Open-ch 2019"]
[Site "Dieren"]
[Date "2019.07.24"]
[Round "2.17"]
[White "Ojas Kulkarni"]
[Black "Ochs, Daniel Elias"]
[Result "1-0"]
[ECO "A25"]
[WhiteElo "2251"]
[BlackElo "2005"]
[Annotator "NA"]
[PlyCount "117"]
[EventDate "2019.07.23"]
[EventType "swiss"]
[EventCountry "NED"]
[SourceTitle "playchess.com"]
[Source "ChessBase"]
[SourceQuality "1"]
[TimeControl "40/5400+30:1800+30"]

1. c4 {[%emt 0:00:00]} e5 {[%emt 0:00:00]} 2. g3 {[%emt 0:00:00]} Nf6 {[%emt 0:00:00]} 3. Bg2 {[%emt 0:00:00]} Bc5 {[%emt 0:00:06]} 4. Nc3 {[%emt 0:00:08]} Nc6 {[%emt 0:00:19]} 5. e3 {[%emt 0:00:27]} O-O {[%emt 0:00:56]} 6. Nge2 {[%emt 0:00:08]} d6 {[%emt 0:02:04]} 7. O-O {[%emt 0:01:14]} Bf5 {[%emt 0:11:11]} 8. d4 {[%emt 0:09:53]} Bb6 {[%emt 0:04:55]} 9. b3 {[%emt 0:17:51]} Qc8 {[%emt 0:13:44]} 10. Nd5 {[%emt 0:16:50]} Nxd5 {[%emt 0:12:23]} 11. cxd5 {[%emt 0:00:02]} Nb4 {[%emt 0:02:52]} 12. e4 {[%emt 0:20:56]} Bg4 {[%emt 0:00:45]} 13. dxe5 {[%emt 0:02:09]} dxe5 {[%emt 0:01:23]} 14. Bb2 {[%emt 0:00:15]} f6 {[%emt 0:07:20]} 15. Kh1 {[%emt 0:01:37]} c6 {[%emt 0:05:42]} 16. a3 {[%emt 0:02:12]} Na6 {[%emt 0:01:22]} 17. f3 {[%emt 0:00:11]} Bh5 {[%emt 0:00:31]} 18. b4 {[%emt 0:05:29]} Rd8 {[%emt 0:02:00]} 19. Qb3 {[%emt 0:00:32]} cxd5 {[%emt 0:00:52]} 20. exd5 {[%emt 0:00:18]} Bf7 {[%emt 0:00:34]} 21. f4 {[%emt 0:00:10]} Qg4 {[%emt 0:02:59]} 22. Bf3 {[%emt 0:01:23]} Qxf3+ {[%emt 0:01:30]} 23. Rxf3 {[%emt 0:07:59]} Bxd5 {[%emt 0:00:12]} 24. Qd3 {[%emt 0:03:41]} e4 {[%emt 0:00:14]} 25. Qb1 {[%emt 0:00:14]} exf3 {[%emt 0:00:10]} 26. Nc3 {[%emt 0:00:05]} Bf7 {[%emt 0:01:22]} 27. Qf1 {[%emt 0:02:18]} Rac8 {[%emt 0:00:49]} 28. Rd1 {[%emt 0:00:55]} Rxd1 {[%emt 0:00:32]} 29. Qxd1 {[%emt 0:00:03]} f2 {[%emt 0:01:26]} 30. Kg2 {[%emt 0:03:18]} Rxc3 {[%emt 0:00:37]} 31. Qd7 {[%emt 0:02:01]} Re3 {[%emt 0:02:14]} 32. Bd4 {[%emt 0:01:13]} Bxd4 {[%emt 0:12:04]} 33. Qxd4 {[%emt 0:00:02]} Re8 {[%emt 0:00:55]} 34. Qxa7 {[%emt 0:00:50]} Bd5+ {[%emt 0:02:38]} 35. Kxf2 {[%emt 0:00:10]} Bc6 {[%emt 0:00:57]} 36. Qb6 {[%emt 0:00:58]} Nb8 {[%emt 0:00:27]} 37. b5 {[%emt 0:00:47]} Be4 {[%emt 0:00:18]} 38. Qc7 {[%emt 0:00:22]} f5 {[%emt 0:00:33]} 39. a4 {[%emt 0:00:08]} h6 {[%emt 0:02:15]} 40. h4 {[%emt 0:00:29]} Kh8 {[%emt 0:02:25]} 41. Kf1 {[%emt 0:31:14]} Kh7 {[%emt 0:31:34]} 42. Kg1 {[%emt 0:00:33]} Kg8 {[%emt 0:03:02]} 43. Kf1 {[%emt 0:00:11]} Bd3+ {[%emt 0:00:17]} 44. Kf2 {[%emt 0:00:07]} Be4 {[%emt 0:00:09]} 45. Ke3 {[%emt 0:01:12]} Bd5+ {[%emt 0:01:51]} 46. Kd4 {[%emt 0:01:04]} Be4 {[%emt 0:00:11]} 47. Kc5 {[%emt 0:00:00]} Kf8 {[%emt 0:00:00]} 48. Kb4 {[%emt 0:00:00]} Kg8 {[%emt 0:00:00]} 49. Qd6 {[%emt 0:00:00]} Kf7 {[%emt 0:00:00]} 50. h5 {[%emt 0:00:00]} Kg8 {[%emt 0:00:00]} 51. Kc5 {[%emt 0:00:00]} Rc8+ {[%emt 0:00:00]} 52. Kb6 {[%emt 0:00:00]} Re8 {[%emt 0:00:00]} 53. Kc7 {[%emt 0:00:00]} Kf7 {[%emt 0:00:00]} 54. Qg6+ {[%emt 0:00:00]} Kf8 {[%emt 0:00:00]} 55. a5 {[%emt 0:00:00]} Nc6 {[%emt 0:00:00]} 56. bxc6 {[%emt 0:00:00]} bxc6 {[%emt 0:00:00]} 57. Qd6+ {[%emt 0:00:00]} Kg8 {[%emt 0:00:00]} 58. Qc5 {[%emt 0:00:00]} Kf7 {[%emt 0:00:00]} 59. a6 {[%emt 0:00:00]} 1-0

[Event "Dutch Open-ch 2019"]
[Site "Dieren"]
[Date "2019.07.24"]
[Round "2.18"]
[White "Mohite, Ranveer"]
[Black "Goswami, Vedant"]
[Result "1-0"]
[ECO "B12"]
[WhiteElo "2229"]
[BlackElo "2046"]
[Annotator "NA"]
[PlyCount "55"]
[EventDate "2019.07.23"]
[EventType "swiss"]
[EventCountry "NED"]
[SourceTitle "playchess.com"]
[Source "ChessBase"]
[SourceQuality "1"]
[TimeControl "40/5400+30:1800+30"]

1. e4 {[%emt 0:00:38]} c6 {[%emt 0:00:00]} 2. d4 {[%emt 0:00:17]} d5 {[%emt 0:00:00]} 3. e5 {[%emt 0:00:07]} Bf5 {[%emt 0:00:00]} 4. Nf3 {[%emt 0:00:14]} e6 {[%emt 0:00:03]} 5. Be2 {[%emt 0:00:15]} Nd7 {[%emt 0:01:16]} 6. c3 {[%emt 0:00:33]} Ne7 {[%emt 0:03:06]} 7. Na3 {[%emt 0:03:59]} h6 {[%emt 0:04:08]} 8. O-O {[%emt 0:04:30]} g5 {[%emt 0:02:09]} 9. Ne1 {[%emt 0:04:31]} Bg7 {[%emt 0:04:04]} 10. Nd3 {[%emt 0:07:36]} Ng6 {[%emt 0:05:25]} 11. Nc2 {[%emt 0:02:33]} O-O {[%emt 0:11:08]} 12. Ne3 {[%emt 0:08:57]} f6 {[%emt 0:10:55]} 13. Nxf5 {[%emt 0:05:16]} exf5 {[%emt 0:00:53]} 14. e6 {[%emt 0:00:11]} Nb8 {[%emt 0:02:43]} 15. f4 {[%emt 0:09:55]} g4 {[%emt 0:07:22]} 16. Bxg4 {[%emt 0:09:00]} fxg4 {[%emt 0:00:23]} 17. f5 {[%emt 0:00:02]} Ne7 {[%emt 0:04:58]} 18. Qxg4 {[%emt 0:00:16]} Kh7 {[%emt 0:02:27]} 19. Rf3 {[%emt 0:00:01]} Rg8 {[%emt 0:01:45]} 20. Rh3 {[%emt 0:01:08]} Na6 {[%emt 0:05:29]} 21. Be3 {[%emt 0:01:07]} Bf8 {[%emt 0:03:30]} 22. Qf3 {[%emt 0:03:44]} Qe8 {[%emt 0:29:16]} 23. Rf1 {[%emt 0:00:58]} b6 {[%emt 0:00:00]} 24. Rh5 {[%emt 0:02:32]} Nc7 {[%emt 0:00:00]} 25. Qh3 {[%emt 0:04:03]} Nxf5 {[%emt 0:00:00]} 26. Rfxf5 {[%emt 0:01:40]} Qg6 {[%emt 0:00:00]} 27. Bxh6 {[%emt 0:06:28]} Bxh6 {[%emt 0:00:00]} 28. Rxh6+ {[%emt 0:00:06]} 1-0

[Event "Dutch Open-ch 2019"]
[Site "Dieren"]
[Date "2019.07.24"]
[Round "2.19"]
[White "Konings, Frans"]
[Black "Heemskerk, Wim"]
[Result "1-0"]
[ECO "B21"]
[WhiteElo "2208"]
[BlackElo "2227"]
[Annotator "NA"]
[PlyCount "69"]
[EventDate "2019.07.23"]
[EventType "swiss"]
[EventCountry "NED"]
[SourceTitle "playchess.com"]
[Source "ChessBase"]
[SourceQuality "1"]
[TimeControl "40/5400+30:1800+30"]

1. e4 {[%emt 0:00:00]} c5 {[%emt 0:00:04]} 2. d4 {[%emt 0:00:00]} cxd4 {[%emt 0:00:16]} 3. c3 {[%emt 0:00:00]} d3 {[%emt 0:00:21]} 4. Bxd3 {[%emt 0:00:00]} Nc6 {[%emt 0:00:32]} 5. Nf3 {[%emt 0:00:44]} d6 {[%emt 0:01:21]} 6. h3 {[%emt 0:01:37]} g6 {[%emt 0:02:13]} 7. O-O {[%emt 0:00:15]} Bg7 {[%emt 0:00:46]} 8. Qe2 {[%emt 0:03:24]} Nf6 {[%emt 0:02:30]} 9. Rd1 {[%emt 0:00:21]} Nd7 {[%emt 0:05:55]} 10. Bc2 {[%emt 0:04:19]} O-O {[%emt 0:01:57]} 11. Be3 {[%emt 0:01:42]} Qc7 {[%emt 0:06:22]} 12. Nbd2 {[%emt 0:01:39]} b6 {[%emt 0:06:14]} 13. Bg5 {[%emt 0:07:27]} Bb7 {[%emt 0:03:04]} 14. Nf1 {[%emt 0:05:20]} Rfe8 {[%emt 0:22:57]} 15. Ne3 {[%emt 0:06:07]} e6 {[%emt 0:08:44]} 16. Rd2 {[%emt 0:02:35]} Nde5 {[%emt 0:09:21]} 17. Rad1 {[%emt 0:11:24]} Nxf3+ {[%emt 0:02:45]} 18. Qxf3 {[%emt 0:02:06]} Ne5 {[%emt 0:01:41]} 19. Qe2 {[%emt 0:02:28]} d5 {[%emt 0:02:25]} 20. exd5 {[%emt 0:07:27]} exd5 {[%emt 0:00:38]} 21. Qf1 {[%emt 0:00:37]} Qc5 {[%emt 0:07:58]} 22. Bf4 {[%emt 0:09:09]} Rac8 {[%emt 0:01:43]} 23. Ba4 {[%emt 0:04:27]} Re6 {[%emt 0:01:28]} 24. Bb3 {[%emt 0:00:51]} Nc4 {[%emt 0:06:59]} 25. Nxc4 {[%emt 0:03:27]} dxc4 {[%emt 0:00:07]} 26. Rd8+ {[%emt 0:00:04]} Re8 {[%emt 0:00:08]} 27. Rxe8+ {[%emt 0:00:09]} Rxe8 {[%emt 0:00:04]} 28. Qxc4 {[%emt 0:00:17]} Qxc4 {[%emt 0:01:57]} 29. Bxc4 {[%emt 0:00:06]} Bc6 {[%emt 0:00:10]} 30. Rd6 {[%emt 0:03:21]} Re4 {[%emt 0:02:26]} 31. Rd8+ {[%emt 0:00:19]} Re8 {[%emt 0:00:05]} 32. Rxe8+ {[%emt 0:00:13]} Bxe8 {[%emt 0:00:02]} 33. Ba6 {[%emt 0:00:12]} b5 {[%emt 0:01:45]} 34. a3 {[%emt 0:00:20]} Bc6 {[%emt 0:00:31]} 35. Be3 {[%emt 0:00:13]} 1-0

[Event "Dutch Open-ch 2019"]
[Site "Dieren"]
[Date "2019.07.24"]
[Round "2.20"]
[White "Mota, Pankit"]
[Black "Munshi, Aditya"]
[Result "0-1"]
[ECO "B10"]
[WhiteElo "2002"]
[BlackElo "2125"]
[Annotator "NA"]
[PlyCount "68"]
[EventDate "2019.07.23"]
[EventType "swiss"]
[EventCountry "NED"]
[SourceTitle "playchess.com"]
[Source "ChessBase"]
[SourceQuality "1"]
[TimeControl "40/5400+30:1800+30"]

1. e4 {[%emt 0:00:00]} c6 {[%emt 0:00:00]} 2. c4 {[%emt 0:00:00]} d5 {[%emt 0:00:00]} 3. cxd5 {[%emt 0:00:00]} cxd5 {[%emt 0:00:00]} 4. exd5 {[%emt 0:00:00]} Nf6 {[%emt 0:00:03]} 5. Nc3 {[%emt 0:00:00]} Nxd5 {[%emt 0:00:09]} 6. Nf3 {[%emt 0:00:00]} Nc6 {[%emt 0:00:07]} 7. Bb5 {[%emt 0:00:04]} g6 {[%emt 0:00:14]} 8. Ne5 {[%emt 0:04:44]} Qd6 {[%emt 0:19:07]} 9. d4 {[%emt 0:10:54]} Bg7 {[%emt 0:23:19]} 10. Nc4 {[%emt 0:18:07]} Qd8 {[%emt 0:14:14]} 11. Qf3 {[%emt 0:07:24]} Be6 {[%emt 0:04:08]} 12. Ne3 {[%emt 0:00:36]} a6 {[%emt 0:05:12]} 13. Ba4 {[%emt 0:09:57]} b5 {[%emt 0:05:15]} 14. Ncxd5 {[%emt 0:16:36]} bxa4 {[%emt 0:02:34]} 15. Nf6+ {[%emt 0:00:12]} Bxf6 {[%emt 0:00:36]} 16. Qxc6+ {[%emt 0:00:07]} Bd7 {[%emt 0:00:08]} 17. Qe4 {[%emt 0:00:07]} Bb5 {[%emt 0:01:56]} 18. Nd5 {[%emt 0:04:03]} O-O {[%emt 0:01:08]} 19. Bh6 {[%emt 0:07:16]} Re8 {[%emt 0:00:58]} 20. Rc1 {[%emt 0:02:13]} Ra7 {[%emt 0:04:01]} 21. Kd2 {[%emt 0:06:42]} Rd7 {[%emt 0:05:11]} 22. Rc5 {[%emt 0:00:07]} Bh8 {[%emt 0:09:27]} 23. Bg5 {[%emt 0:06:27]} Bc6 {[%emt 0:00:48]} 24. Nxe7+ {[%emt 0:01:53]} Rexe7 {[%emt 0:02:41]} 25. Bxe7 {[%emt 0:04:05]} Rxe7 {[%emt 0:00:33]} 26. Qxc6 {[%emt 0:00:51]} Qxd4+ {[%emt 0:00:05]} 27. Kc1 {[%emt 0:00:26]} Qxb2+ {[%emt 0:00:05]} 28. Kd1 {[%emt 0:00:02]} Qe2+ {[%emt 0:01:01]} 29. Kc1 {[%emt 0:00:04]} Qb2+ {[%emt 0:00:10]} 30. Kd1 {[%emt 0:00:01]} Qa1+ {[%emt 0:01:15]} 31. Kd2 {[%emt 0:01:02]} Qxh1 {[%emt 0:00:20]} 32. Qc8+ {[%emt 0:01:04]} Kg7 {[%emt 0:00:00]} 33. Rc1 {[%emt 0:00:19]} Qxh2 {[%emt 0:01:12]} 34. Qc3+ {[%emt 0:00:30]} Qe5 {[%emt 0:00:21]} 0-1

[Event "Dutch Open-ch 2019"]
[Site "Dieren"]
[Date "2019.07.25"]
[Round "3.1"]
[White "Lai, Hing Ting"]
[Black "Reinderman, Dimitri"]
[Result "1/2-1/2"]
[ECO "A96"]
[WhiteElo "2460"]
[BlackElo "2583"]
[Annotator "ChessBase"]
[PlyCount "36"]
[EventDate "2019.07.23"]
[EventType "swiss"]
[EventCountry "NED"]
[SourceTitle "playchess.com"]
[Source "ChessBase"]
[SourceQuality "1"]
[TimeControl "40/5400+30:1800+30"]

1. d4 {[%emt 0:00:00]} e6 {[%emt 0:00:00]} 2. Nf3 {[%emt 0:00:00]} f5 {[%emt 0:00:00]} 3. g3 {[%emt 0:00:00]} Nf6 {[%emt 0:00:00]} 4. Bg2 {[%emt 0:00:00]} Be7 {[%emt 0:00:00]} 5. O-O {[%emt 0:00:17]} O-O {[%emt 0:00:01]} 6. c4 {[%emt 0:00:17]} d6 {[%emt 0:00:04]} 7. Nc3 {[%emt 0:00:08]} Ne4 {[%emt 0:00:09]} 8. Qc2 {[%emt 0:00:27]} Nxc3 {[%emt 0:00:09]} 9. Qxc3 {[%emt 0:00:13]} a5 {[%emt 0:00:13]} 10. b3 {[%emt 0:00:38]} Nc6 {[%emt 0:00:32]} 11. Bb2 {[%emt 0:04:58]} Bf6 {[%emt 0:00:32]} 12. Rfe1 {[%emt 0:02:02]} e5 {[%emt 0:04:52]} 13. dxe5 {[%emt 0:01:26]} Nxe5 {[%emt 0:08:22]} 14. Qc2 {[%emt 0:03:38]} Nc6 {[%emt 0:04:19]} 15. a3 {[%emt 0:04:04]} Be6 {[%emt 1:18:17]} 16. Bxf6 {[%emt 0:26:41]} Qxf6 {[%emt 0:00:00]} 17. e3 {[%emt 0:00:15]} Rad8 {[%emt 0:00:00]} 18. Nd4 {[%emt 0:04:36]} Nxd4 {[%emt 0:00:00]} 1/2-1/2

[Event "Dutch Open-ch 2019"]
[Site "Dieren"]
[Date "2019.07.25"]
[Round "3.2"]
[White "David, Alberto"]
[Black "Hausrath, Daniel"]
[Result "1/2-1/2"]
[ECO "E91"]
[WhiteElo "2553"]
[BlackElo "2468"]
[Annotator "ChessBase"]
[PlyCount "214"]
[EventDate "2019.07.23"]
[EventType "swiss"]
[EventCountry "NED"]
[SourceTitle "playchess.com"]
[Source "ChessBase"]
[SourceQuality "1"]
[TimeControl "40/5400+30:1800+30"]

1. Nf3 {[%emt 0:00:00]} Nf6 {[%emt 0:00:00]} 2. c4 {[%emt 0:00:15]} g6 {[%emt 0:00:30]} 3. Nc3 {[%emt 0:00:13]} Bg7 {[%emt 0:00:06]} 4. d4 {[%emt 0:00:39]} d6 {[%emt 0:00:40]} 5. e4 {[%emt 0:00:09]} O-O {[%emt 0:00:07]} 6. Be2 {[%emt 0:00:08]} c6 {[%emt 0:03:10]} 7. Be3 {[%emt 0:06:08]} a6 {[%emt 0:03:24]} 8. Nd2 {[%emt 0:04:51]} Nbd7 {[%emt 0:14:10]} 9. Rc1 {[%emt 0:10:07]} b5 {[%emt 0:06:41]} 10. b4 {[%emt 0:07:09]} a5 {[%emt 0:06:54]} 11. a3 {[%emt 0:00:48]} axb4 {[%emt 0:00:53]} 12. axb4 {[%emt 0:00:05]} bxc4 {[%emt 0:03:38]} 13. Nxc4 {[%emt 0:00:08]} Ba6 {[%emt 0:00:15]} 14. Na5 {[%emt 0:02:20]} Bxe2 {[%emt 0:07:37]} 15. Qxe2 {[%emt 0:00:22]} Qb6 {[%emt 0:21:22]} 16. d5 {[%emt 0:12:07]} c5 {[%emt 0:04:56]} 17. Nc6 {[%emt 0:01:02]} Rfe8 {[%emt 0:00:50]} 18. O-O {[%emt 0:05:15]} e6 {[%emt 0:01:31]} 19. bxc5 {[%emt 0:01:27]} Nxc5 {[%emt 0:00:39]} 20. Bd4 {[%emt 0:23:47]} Nfd7 {[%emt 0:06:52]} 21. Bxg7 {[%emt 0:02:24]} Kxg7 {[%emt 0:00:02]} 22. Rb1 {[%emt 0:00:50]} Qa6 {[%emt 0:01:33]} 23. Nb5 {[%emt 0:02:44]} Nf6 {[%emt 0:02:41]} 24. Qb2 {[%emt 0:02:23]} Ncxe4 {[%emt 0:06:45]} 25. Nc7 {[%emt 0:00:42]} Qc8 {[%emt 0:00:21]} 26. Nxa8 {[%emt 0:07:40]} Qxa8 {[%emt 0:00:02]} 27. Ra1 {[%emt 0:00:11]} Qc8 {[%emt 0:00:21]} 28. Rfc1 {[%emt 0:02:47]} Nc5 {[%emt 0:00:52]} 29. Na7 {[%emt 0:04:13]} Qd7 {[%emt 0:02:47]} 30. dxe6 {[%emt 0:00:41]} Qxe6 {[%emt 0:00:05]} 31. Qc3 {[%emt 0:00:29]} Qd7 {[%emt 0:01:33]} 32. Ra2 {[%emt 0:02:00]} Re5 {[%emt 0:01:08]} 33. h3 {[%emt 0:00:26]} Qe6 {[%emt 0:00:38]} 34. Rac2 {[%emt 0:00:59]} Nd5 {[%emt 0:00:31]} 35. Qf3 {[%emt 0:01:11]} Nb4 {[%emt 0:00:26]} 36. Rc3 {[%emt 0:00:25]} Na2 {[%emt 0:00:43]} 37. Nb5 {[%emt 0:00:18]} Nxc1 {[%emt 0:01:23]} 38. Rxc1 {[%emt 0:00:06]} Re1+ {[%emt 0:00:04]} 39. Rxe1 {[%emt 0:00:04]} Qxe1+ {[%emt 0:00:03]} 40. Kh2 {[%emt 0:00:03]} Qe5+ {[%emt 0:02:16]} 41. Qg3 {[%emt 0:06:25]} Ne4 {[%emt 0:03:27]} 42. Qxe5+ {[%emt 0:00:06]} dxe5 {[%emt 0:00:02]} 43. f3 {[%emt 0:00:41]} Nd2 {[%emt 0:04:02]} 44. Kg3 {[%emt 0:00:18]} f5 {[%emt 0:00:23]} 45. Kf2 {[%emt 0:02:11]} Kf6 {[%emt 0:00:19]} 46. Nc3 {[%emt 0:05:10]} Ke6 {[%emt 0:01:36]} 47. Ke3 {[%emt 0:01:16]} Nc4+ {[%emt 0:00:30]} 48. Kd3 {[%emt 0:00:16]} Nb6 {[%emt 0:00:25]} 49. g3 {[%emt 0:01:40]} Nd5 {[%emt 0:01:02]} 50. Ne2 {[%emt 0:00:07]} g5 {[%emt 0:03:53]} 51. Kc4 {[%emt 0:00:31]} h5 {[%emt 0:01:18]} 52. Kc5 {[%emt 0:00:41]} h4 {[%emt 0:02:41]} 53. gxh4 {[%emt 0:03:02]} gxh4 {[%emt 0:00:07]} 54. Kc6 {[%emt 0:03:28]} Nb4+ {[%emt 0:06:35]} 55. Kc5 {[%emt 0:00:10]} Nd3+ {[%emt 0:00:20]} 56. Kc4 {[%emt 0:00:23]} Nf2 {[%emt 0:01:18]} 57. Ng1 {[%emt 0:00:03]} Kd6 {[%emt 0:01:54]} 58. f4 {[%emt 0:00:55]} e4 {[%emt 0:02:25]} 59. Kd4 {[%emt 0:00:04]} Nd3 {[%emt 0:01:19]} 60. Ne2 {[%emt 0:00:08]} Ne1 {[%emt 0:01:35]} 61. Nc3 {[%emt 0:05:39]} Nc2+ {[%emt 0:00:40]} 62. Kc4 {[%emt 0:01:28]} Ke6 {[%emt 0:00:11]} 63. Ne2 {[%emt 0:02:02]} Ne1 {[%emt 0:01:57]} 64. Nd4+ {[%emt 0:04:32]} Kf6 {[%emt 0:00:01]} 65. Ne2 {[%emt 0:00:13]} Nf3 {[%emt 0:01:52]} 66. Kd5 {[%emt 0:00:27]} Nd2 {[%emt 0:00:26]} 67. Kc5 {[%emt 0:00:25]} Nf1 {[%emt 0:00:16]} 68. Kd4 {[%emt 0:02:15]} Ke6 {[%emt 0:00:34]} 69. Nc3 {[%emt 0:00:21]} Ng3 {[%emt 0:00:31]} 70. Ke3 {[%emt 0:00:30]} Nh5 {[%emt 0:01:33]} 71. Nb5 {[%emt 0:00:30]} Kd5 {[%emt 0:00:36]} 72. Nc3+ {[%emt 0:00:52]} Kd6 {[%emt 0:00:25]} 73. Nb5+ {[%emt 0:00:14]} Kd5 {[%emt 0:01:19]} 74. Nc3+ {[%emt 0:00:28]} Ke6 {[%emt 0:00:05]} 75. Nb5 {[%emt 0:00:14]} Ng7 {[%emt 0:00:16]} 76. Nc3 {[%emt 0:00:45]} Kd6 {[%emt 0:01:12]} 77. Nb5+ {[%emt 0:00:09]} Kc5 {[%emt 0:00:30]} 78. Nc3 {[%emt 0:00:09]} Kd6 {[%emt 0:00:30]} 79. Nb5+ {[%emt 0:00:06]} Ke7 {[%emt 0:00:56]} 80. Nd4 {[%emt 0:00:33]} Kf6 {[%emt 0:00:08]} 81. Nb5 {[%emt 0:00:23]} Ne6 {[%emt 0:00:34]} 82. Nd6 {[%emt 0:00:52]} Nc7 {[%emt 0:00:16]} 83. Kd4 {[%emt 0:00:52]} Ke6 {[%emt 0:00:14]} 84. Nb7 {[%emt 0:00:54]} Nb5+ {[%emt 0:00:33]} 85. Ke3 {[%emt 0:00:40]} Kd5 {[%emt 0:00:19]} 86. Na5 {[%emt 0:00:11]} Nd4 {[%emt 0:01:48]} 87. Nb7 {[%emt 0:00:11]} Ne6 {[%emt 0:00:15]} 88. Na5 {[%emt 0:00:07]} Nc5 {[%emt 0:00:18]} 89. Ke2 {[%emt 0:00:17]} Nd3 {[%emt 0:00:42]} 90. Ke3 {[%emt 0:00:03]} Nb4 {[%emt 0:00:10]} 91. Nb3 {[%emt 0:00:16]} Kd6 {[%emt 0:00:46]} 92. Nd4 {[%emt 0:00:31]} Nd5+ {[%emt 0:00:09]} 93. Kf2 {[%emt 0:00:30]} Ne7 {[%emt 0:00:06]} 94. Nc2 {[%emt 0:01:35]} Kc5 {[%emt 0:00:48]} 95. Ne3 {[%emt 0:00:11]} Kd4 {[%emt 0:00:31]} 96. Ke2 {[%emt 0:00:17]} Kc3 {[%emt 0:00:38]} 97. Nd1+ {[%emt 0:00:19]} Kc4 {[%emt 0:00:51]} 98. Ne3+ {[%emt 0:00:13]} Kd4 {[%emt 0:00:01]} 99. Nc2+ {[%emt 0:00:11]} Kd5 {[%emt 0:00:08]} 100. Ne3+ {[%emt 0:00:05]} Ke6 {[%emt 0:00:05]} 101. Ng2 {[%emt 0:01:35]} Ng6 {[%emt 0:01:13]} 102. Kd2 {[%emt 0:00:15]} Kd6 {[%emt 0:00:49]} 103. Ne3 {[%emt 0:00:29]} Nxf4 {[%emt 0:00:43]} 104. Nxf5+ {[%emt 0:00:04]} Ke5 {[%emt 0:00:05]} 105. Nxh4 {[%emt 0:00:06]} Nxh3 {[%emt 0:00:05]} 106. Ke3 {[%emt 0:00:09]} Nf4 {[%emt 0:00:06]} 107. Nf3+ {[%emt 0:00:06]} exf3 {[%emt 0:00:06]} 1/2-1/2

[Event "Dutch Open-ch 2019"]
[Site "Dieren"]
[Date "2019.07.25"]
[Round "3.3"]
[White "Das, Arghyadip"]
[Black "Pruijssers, Roeland"]
[Result "0-1"]
[ECO "A32"]
[WhiteElo "2439"]
[BlackElo "2534"]
[Annotator "ChessBase"]
[PlyCount "48"]
[EventDate "2019.07.23"]
[EventType "swiss"]
[EventCountry "NED"]
[SourceTitle "playchess.com"]
[Source "ChessBase"]
[SourceQuality "1"]
[TimeControl "40/5400+30:1800+30"]

1. Nf3 {[%emt 0:00:00]} c5 {[%emt 0:00:06]} 2. c4 {[%emt 0:00:00]} Nf6 {[%emt 0:00:26]} 3. d4 {[%emt 0:01:38]} cxd4 {[%emt 0:00:20]} 4. Nxd4 {[%emt 0:00:03]} e6 {[%emt 0:01:13]} 5. Nc3 {[%emt 0:00:09]} Nc6 {[%emt 0:00:10]} 6. Bg5 {[%emt 0:00:15]} Qb6 {[%emt 0:02:55]} 7. Nb3 {[%emt 0:09:39]} Bb4 {[%emt 0:04:09]} 8. Bxf6 {[%emt 0:02:28]} gxf6 {[%emt 0:00:08]} 9. Rc1 {[%emt 0:01:10]} a5 {[%emt 0:04:17]} 10. e3 {[%emt 0:07:55]} a4 {[%emt 0:05:33]} 11. Nd4 {[%emt 0:02:41]} a3 {[%emt 0:17:39]} 12. b3 {[%emt 0:01:05]} Qa5 {[%emt 0:00:06]} 13. Qd2 {[%emt 0:12:31]} d5 {[%emt 0:12:04]} 14. cxd5 {[%emt 0:06:26]} Nxd4 {[%emt 0:01:00]} 15. Qxd4 {[%emt 0:14:10]} e5 {[%emt 0:03:26]} 16. Qd3 {[%emt 0:00:07]} Bd7 {[%emt 0:00:22]} 17. Kd1 {[%emt 0:00:39]} f5 {[%emt 0:06:31]} 18. f4 {[%emt 0:08:54]} exf4 {[%emt 0:05:49]} 19. exf4 {[%emt 0:03:09]} O-O {[%emt 0:00:12]} 20. h4 {[%emt 0:01:14]} Rfc8 {[%emt 0:06:26]} 21. Nb5 {[%emt 0:12:16]} Rxc1+ {[%emt 0:04:51]} 22. Kxc1 {[%emt 0:00:02]} Rc8+ {[%emt 0:00:07]} 23. Kb1 {[%emt 0:00:09]} Bf8 {[%emt 0:07:13]} 24. Be2 {[%emt 0:06:35]} Bxb5 {[%emt 0:00:27]} 0-1

[Event "Dutch Open-ch 2019"]
[Site "Dieren"]
[Date "2019.07.25"]
[Round "3.4"]
[White "Beerdsen, Thomas"]
[Black "Lahaye, Rick"]
[Result "1-0"]
[ECO "B94"]
[WhiteElo "2497"]
[BlackElo "2421"]
[Annotator "ChessBase"]
[PlyCount "73"]
[EventDate "2019.07.23"]
[EventType "swiss"]
[EventCountry "NED"]
[SourceTitle "playchess.com"]
[Source "ChessBase"]
[SourceQuality "1"]
[TimeControl "40/5400+30:1800+30"]

1. e4 {[%emt 0:07:08]} c5 {[%emt 0:00:00]} 2. Nf3 {[%emt 0:00:15]} a6 {[%emt 0:00:00]} 3. Nc3 {[%emt 0:00:48]} d6 {[%emt 0:00:00]} 4. d4 {[%emt 0:00:22]} cxd4 {[%emt 0:00:00]} 5. Nxd4 {[%emt 0:00:04]} Nf6 {[%emt 0:00:13]} 6. Bg5 {[%emt 0:00:07]} Nbd7 {[%emt 0:00:31]} 7. Bc4 {[%emt 0:00:09]} h6 {[%emt 0:01:08]} 8. Bh4 {[%emt 0:04:49]} Ne5 {[%emt 0:00:55]} 9. Bb3 {[%emt 0:00:26]} g5 {[%emt 0:00:16]} 10. Bg3 {[%emt 0:01:06]} e6 {[%emt 0:00:23]} 11. Qe2 {[%emt 0:05:09]} Qc7 {[%emt 0:10:37]} 12. O-O-O {[%emt 0:02:05]} Bd7 {[%emt 0:01:04]} 13. Kb1 {[%emt 0:02:25]} b5 {[%emt 0:03:10]} 14. a3 {[%emt 0:03:04]} Rb8 {[%emt 0:01:06]} 15. f3 {[%emt 0:09:23]} Nh5 {[%emt 0:15:29]} 16. Be1 {[%emt 0:06:34]} Nf4 {[%emt 0:00:49]} 17. Qf2 {[%emt 0:00:52]} Nfg6 {[%emt 0:22:15]} 18. g3 {[%emt 0:01:48]} Bg7 {[%emt 0:05:41]} 19. h4 {[%emt 0:04:41]} gxh4 {[%emt 0:05:38]} 20. f4 {[%emt 0:00:54]} Nc4 {[%emt 0:01:00]} 21. gxh4 {[%emt 0:01:06]} h5 {[%emt 0:06:37]} 22. Rg1 {[%emt 0:04:22]} Bh6 {[%emt 0:01:19]} 23. Rxg6 {[%emt 0:08:06]} fxg6 {[%emt 0:00:32]} 24. Qg3 {[%emt 0:00:32]} Kf7 {[%emt 0:07:36]} 25. f5 {[%emt 0:01:06]} exf5 {[%emt 0:02:20]} 26. exf5 {[%emt 0:01:46]} gxf5 {[%emt 0:08:46]} 27. Nd5 {[%emt 0:01:49]} Qb7 {[%emt 0:01:16]} 28. Qf3 {[%emt 0:00:33]} Bg7 {[%emt 0:00:43]} 29. Nxf5 {[%emt 0:01:46]} Bxf5 {[%emt 0:00:48]} 30. Qxf5+ {[%emt 0:00:05]} Kg8 {[%emt 0:00:23]} 31. Bc3 {[%emt 0:06:31]} Qf7 {[%emt 0:01:35]} 32. Qg5 {[%emt 0:02:01]} Rh7 {[%emt 0:00:02]} 33. Nf6+ {[%emt 0:07:41]} Kh8 {[%emt 0:00:04]} 34. Rg1 {[%emt 0:00:58]} Rh6 {[%emt 0:02:45]} 35. Ne8 {[%emt 0:01:53]} Qg6 {[%emt 0:01:23]} 36. Bxg7+ {[%emt 0:00:29]} Kh7 {[%emt 0:00:16]} 37. Qxh6+ {[%emt 0:00:30]} 1-0